fUSD/lending_fUSD_20260219
["ID","MTS","AMOUNT","RATE_DAILY","PERIOD"]
[406010431,1771538454612,-2000.0,0.000515,120]
[406010432,1771538454638,-2000.0,0.000515,120]
[406010433,1771538454665,-2000.0,0.000515,120]
[406010434,1771538454691,-2000.0,0.000515,120]
[406010435,1771538454715,-2000.0,0.000515,120]
[406010436,1771538454740,-2000.0,0.000515,120]
[406010437,1771538454768,-2000.0,0.000515,120]
[406010438,1771538454792,-2000.0,0.000515,120]
[406010439,1771538454818,-2000.0,0.000515,120]
[406010440,1771538454843,-2000.0,0.000515,120]
[406010441,1771538454868,-2000.0,0.000515,120]
[406010442,1771538454893,-2000.0,0.000515,120]
[406010443,1771538454919,-2000.0,0.000515,120]
[406010444,1771538454947,-2000.0,0.000515,120]
[406010445,1771538454974,-2000.0,0.000515,120]
[406010446,1771538455004,-2000.0,0.000515,120]
[406010447,1771538455030,-2000.0,0.000515,120]
[406010448,1771538455055,-2000.0,0.000515,120]
[406010449,1771538455080,-2000.0,0.000515,120]
[406010450,1771538455106,-2000.0,0.000515,120]
[406010451,1771538455132,-748.28,0.000515,120]
[406010452,1771538455157,-1000.0,0.000515,90]
[406010453,1771538455183,-1000.0,0.000515,90]
[406010454,1771538455208,-1000.0,0.000515,90]
[406010455,1771538455236,-1500.0,0.000515,120]
[406010456,1771538455261,-688.696,0.000515,120]
[406010457,1771538455286,-500.0,0.00051988,60]
[406010458,1771538455311,-568.44117479,0.0005225,120]
[406010459,1771538455336,-150.0,0.00052399,30]
[406010460,1771538455361,-162.2040917,0.00052399,30]
[406010461,1771538455385,-3454771.48746179,0.000524,30]
[406010462,1771538455411,-2178.86,0.000524,120]
[406010463,1771538455438,-367.0,0.00052425,120]
[406010464,1771538455463,-367.0,0.00052425,120]
[406010465,1771538455489,-2000.0,0.0005243,81]
[406010466,1771538455514,-752.26675639,0.000525,120]
[406010467,1771538455544,-804.7142829,0.000525,120]
[406010468,1771538455570,-162.0,0.000525,120]
[406010469,1771538455595,-1539.0,0.00052547,90]
[406010470,1771538455628,-181.8831416,0.00052602,120]
[406010471,1771538455654,-4985.16919,0.00052603,30]
[406010472,1771538455679,-2000.0,0.0005263,78]
[406010473,1771538455706,-516.71,0.00052734,120]
[406010474,1771538455732,-2492.63,0.000528,120]
[406010475,1771538455758,-1728.89,0.000528,120]
[406010476,1771538455784,-153.0,0.000528,120]
[406010477,1771538455812,-150.0,0.00052841,120]
[406010478,1771538455838,-2639.67,0.00052876,120]
[406010479,1771538455864,-150.0,0.00052922,120]
[406010480,1771538455890,-267.46074303,0.00052999,60]
[406010481,1771538455930,-267.10601886,0.00053,120]
[406010482,1771538455957,-165.50320991,0.00053,120]
[406010483,1771538455983,-593.57489332,0.00053,120]
[406010484,1771538456009,-1500.0,0.00053,120]
[406010485,1771538456036,-528.0,0.00053,120]
[406010486,1771538456062,-150.0,0.00053,120]
[406010487,1771538456088,-200.0,0.00053,120]
[406010488,1771538456116,-3392.0,0.00053,120]
[406010489,1771538456143,-3025.0,0.00053,120]
[406010490,1771538456169,-537.73218957,0.00053,120]
[406010491,1771538456195,-500.0,0.00053084,60]
[406010492,1771538456220,-162.0,0.000531,120]
[406010493,1771538456247,-500.0,0.00053424,120]
[406010494,1771538456273,-150.0,0.00053432,120]
[406010495,1771538456299,-2000.0,0.0005345,78]
[406010496,1771538456330,-516.71,0.00053476,120]
[406010497,1771538456357,-3215.85399946,0.000535,120]
[406010498,1771538456383,-153.0,0.000535,120]
[406010499,1771538456408,-1037.0,0.000535,120]
[406010500,1771538456436,-1453851.95624668,0.000535,120]
[406010506,1771538473680,593.0,0.00017,31]
[406010512,1771538532903,-464.262,0.00034266,38]
[406010513,1771538532929,-304.71,0.000401,30]
[406010514,1771538532960,-747.0,0.0004061,30]
[406010515,1771538532987,-304.71,0.000433,30]
[406010516,1771538533016,-757.0,0.000445,120]
[406010517,1771538533044,-749.0,0.00044524,30]
[406010518,1771538533072,-2807.61902302,0.000446,52]
[406010519,1771538533096,-739.0,0.00044601,30]
[406010520,1771538533121,-725.0,0.00044601,30]
[406010521,1771538533164,-3004.862986,0.00044601,120]
[406010522,1771538533189,-3004.862986,0.00044601,120]
[406010523,1771538533213,-3004.862986,0.00044601,120]
[406010524,1771538533243,-3004.862986,0.00044601,120]
[406010525,1771538533271,-3004.862986,0.00044601,120]
[406010526,1771538533295,-3004.862986,0.00044601,120]
[406010527,1771538533319,-3004.862986,0.00044601,120]
[406010528,1771538533344,-3004.862986,0.00044601,120]
[406010529,1771538533369,-3004.862986,0.00044601,120]
[406010530,1771538533393,-3004.862986,0.00044601,120]
[406010531,1771538533418,-3004.862986,0.00044601,120]
[406010532,1771538533444,-3004.862986,0.00044601,120]
[406010533,1771538533472,-3004.862986,0.00044601,120]
[406010534,1771538533500,-3004.862986,0.00044601,120]
[406010535,1771538533524,-3004.862986,0.00044601,120]
[406010536,1771538533549,-3004.862982,0.00044601,120]
[406010537,1771538533575,-304.71,0.000455,30]
[406010538,1771538533606,-516.66,0.000468,120]
[406010539,1771538533631,-304.71,0.000472,30]
[406010540,1771538533659,-757.0,0.00048,120]
[406010541,1771538533684,-304.71,0.000489,30]
[406010542,1771538533709,-184.56,0.000494,30]
[406010543,1771538533735,-420.68040354,0.00049972,120]
[406010544,1771538533760,-150.0,0.00050782,30]
[406010545,1771538533786,-2015.98821651,0.00050782,30]
[406010546,1771538533812,-1000.0,0.00051061,30]
[406010547,1771538533837,-757.0,0.000515,120]
[406010548,1771538533863,-1000.0,0.00052314,30]
[406010549,1771538533888,-500.0,0.000525,60]
[406010550,1771538533913,-503.03810445,0.000525,60]
[406010551,1771538533938,-304.71,0.000529,30]
[406010552,1771538533976,-200.0,0.00053083,60]
[406010553,1771538534001,-207.4,0.00053083,60]
[406010554,1771538534027,-215.0738,0.00053083,60]
[406010555,1771538534052,-223.0315306,0.00053083,60]
[406010556,1771538534078,-231.28369723,0.00053083,60]
[406010557,1771538534103,-239.84119403,0.00053083,60]
[406010558,1771538534128,-248.71531821,0.00053083,60]
[406010559,1771538534154,-200.0,0.00053499,120]
[406010560,1771538534179,-250.0,0.00053499,120]
[406010561,1771538534204,-209.40437685,0.00053499,120]
[406010562,1771538534229,-514.8407087,0.00053499,120]
[406010563,1771538534256,-6888.0,0.00053499,120]
[406010564,1771538534281,-500.0,0.00053499,120]
[406010565,1771538534307,-200.0,0.00053499,120]
[406010566,1771538534331,-250.0,0.00053499,120]
[406010567,1771538534357,-3018.76473462,0.00053499,120]
[406010568,1771538534383,-200.0,0.00053499,120]
[406010569,1771538534407,-500.0,0.00053499,120]
[406010570,1771538534433,-200.0,0.00053499,120]
[406010571,1771538534458,-250.0,0.00053499,120]
[406010572,1771538534484,-500.0,0.00053499,120]
[406010573,1771538534509,-200.0,0.00053499,120]
[406010574,1771538534535,-250.0,0.00053499,120]
[406010575,1771538534560,-500.0,0.00053499,120]
[406010576,1771538534585,-500.0,0.00053499,120]
[406010577,1771538534610,-200.0,0.00053499,120]
[406010578,1771538534635,-250.0,0.00053499,120]
[406010579,1771538534660,-174.61919141,0.00053499,120]
[406010580,1771538534685,-500.0,0.00053499,120]
[406010581,1771538534711,-500.0,0.00053499,120]
[406010582,1771538534736,-200.0,0.00053499,120]
[406010583,1771538534763,-250.0,0.00053499,120]
[406010584,1771538534789,-500.0,0.00053499,120]
[406010585,1771538534814,-534.76175076,0.00053499,120]
[406010586,1771538535003,-200.0,0.00053499,120]
[406010587,1771538535031,-250.0,0.00053499,120]
[406010588,1771538535060,-500.0,0.00053499,120]
[406010589,1771538535089,-200.0,0.00053499,120]
[406010590,1771538535116,-250.0,0.00053499,120]
[406010591,1771538535143,-500.0,0.00053499,120]
[406010592,1771538535169,-5000.0,0.00053499,120]
[406010593,1771538535196,-250.0,0.00053499,120]
[406010594,1771538535222,-500.0,0.00053499,120]
[406010595,1771538535247,-5000.0,0.00053499,120]
[406010596,1771538535272,-500.0,0.00053499,120]
[406010597,1771538535297,-5000.0,0.00053499,120]
[406010598,1771538535323,-500.0,0.00053499,120]
[406010599,1771538535349,-500.0,0.00053499,120]
[406010600,1771538535375,-209.40437685,0.00053499,120]
[406010601,1771538535400,-500.0,0.00053499,120]
[406010602,1771538535426,-5000.0,0.00053499,120]
[406010603,1771538535451,-253.24095906,0.00053499,120]
[406010604,1771538535476,-151.0,0.00053499,120]
[406010605,1771538535501,-500.0,0.00053499,120]
[406010606,1771538535527,-500.0,0.00053499,120]
[406010607,1771538535552,-5000.0,0.00053499,120]
[406010608,1771538535577,-151.0,0.00053499,120]
[406010609,1771538535602,-500.0,0.00053499,120]
[406010610,1771538535627,-202.10287517,0.00053499,120]
[406010611,1771538535652,-5000.0,0.00053499,120]
[406010612,1771538535677,-151.0,0.00053499,120]
[406010613,1771538535703,-500.0,0.00053499,120]
[406010614,1771538535730,-5000.0,0.00053499,120]
[406010615,1771538535761,-1000.0,0.00053499,120]
[406010616,1771538535791,-151.0,0.00053499,120]
[406010617,1771538535821,-500.0,0.00053499,120]
[406010618,1771538535850,-5000.0,0.00053499,120]
[406010619,1771538535880,-1000.0,0.00053499,120]
[406010620,1771538535910,-151.0,0.00053499,120]
[406010621,1771538535939,-520.0,0.00053499,120]
[406010622,1771538535971,-500.0,0.00053499,120]
[406010623,1771538536000,-5000.0,0.00053499,120]
[406010624,1771538536030,-250.0,0.00053499,120]
[406010625,1771538536061,-201.12765536,0.00053499,120]
[406010626,1771538536091,-500.0,0.00053499,120]
[406010627,1771538536120,-1000.0,0.00053499,120]
[406010628,1771538536150,-250.0,0.00053499,120]
[406010629,1771538536180,-500.0,0.00053499,120]
[406010630,1771538536210,-500.0,0.00053499,120]
[406010631,1771538536239,-250.0,0.00053499,120]
[406010632,1771538536268,-250.0,0.00053499,120]
[406010633,1771538536299,-518.5,0.00053499,120]
[406010634,1771538536327,-1000.0,0.00053499,120]
[406010635,1771538536354,-250.0,0.00053499,120]
[406010636,1771538536382,-250.0,0.00053499,120]
[406010637,1771538536412,-537.6845,0.00053499,120]
[406010638,1771538536440,-1000.0,0.00053499,120]
[406010639,1771538536468,-250.0,0.00053499,120]
[406010640,1771538536496,-250.0,0.00053499,120]
[406010641,1771538536525,-350.0,0.00053499,120]
[406010642,1771538536555,-557.5788265,0.00053499,120]
[406010643,1771538536583,-1000.0,0.00053499,120]
[406010644,1771538536612,-250.0,0.00053499,120]
[406010645,1771538536639,-250.0,0.00053499,120]
[406010646,1771538536667,-350.0,0.00053499,120]
[406010647,1771538536698,-578.20924308,0.00053499,120]
[406010648,1771538536726,-1000.0,0.00053499,120]
[406010649,1771538536755,-250.0,0.00053499,120]
[406010650,1771538536784,-250.0,0.00053499,120]
[406010651,1771538536813,-350.0,0.00053499,120]
[406010652,1771538536844,-599.60298507,0.00053499,120]
[406010653,1771538536874,-1000.0,0.00053499,120]
[406010654,1771538536902,-250.0,0.00053499,120]
[406010655,1771538536931,-3000.0,0.00053499,120]
[406010656,1771538536963,-303.16395355,0.00053499,120]
[406010657,1771538536997,-350.0,0.00053499,120]
[406010658,1771538537032,-621.78829552,0.00053499,120]
[406010659,1771538537064,-1000.0,0.00053499,120]
[406010660,1771538537094,-250.0,0.00053499,120]
[406010661,1771538537124,-3000.0,0.00053499,120]
[406010662,1771538537155,-350.0,0.00053499,120]
[406010663,1771538537184,-644.79446246,0.00053499,120]
[406010664,1771538537214,-3000.0,0.00053499,120]
[406010665,1771538537243,-350.0,0.00053499,120]
[406010666,1771538537273,-668.65185757,0.00053499,120]
[406010667,1771538537302,-3000.0,0.00053499,120]
[406010668,1771538537329,-350.0,0.00053499,120]
[406010669,1771538537358,-693.3919763,0.00053499,120]
[406010670,1771538537386,-3000.0,0.00053499,120]
[406010671,1771538537414,-404.92385594,0.00053499,120]
[406010672,1771538537442,-3000.0,0.00053499,120]
[406010673,1771538537468,-743.50770149,0.00053499,120]
[406010674,1771538537498,-719.04747942,0.00053499,120]
[406010675,1771538537527,-3000.0,0.00053499,120]
[406010676,1771538537557,-745.65223616,0.00053499,120]
[406010677,1771538537586,-3000.0,0.00053499,120]
[406010678,1771538537616,-773.2413689,0.00053499,120]
[406010679,1771538537645,-597.77080282,0.00053499,120]
[406010680,1771538537675,-801.85129955,0.00053499,120]
[406010681,1771538537705,-831.51979763,0.00053499,120]
[406010682,1771538537736,-862.28603014,0.00053499,120]
[406010683,1771538537767,-894.19061326,0.00053499,120]
[406010684,1771538537798,-927.27566595,0.00053499,120]
[406010685,1771538537826,-961.58486559,0.00053499,120]
[406010686,1771538537856,-997.16350561,0.00053499,120]
[406010687,1771538537884,-2345.0,0.00053499,120]
[406010688,1771538537914,-2345.0,0.00053499,120]
[406010689,1771538537944,-765.48411087,0.00053499,120]
[406010690,1771538537975,-151.0,0.00053499,120]
[406010691,1771538538121,-162.380719,0.00053499,120]
[406010692,1771538538151,-151.0,0.00053499,120]
[406010693,1771538538180,-578.20924308,0.00053499,120]
[406010694,1771538538208,-151.0,0.00053499,120]
[406010695,1771538538237,-151.0,0.00053499,120]
[406010696,1771538538266,-151.0,0.00053499,120]
[406010697,1771538538295,-151.0,0.00053499,120]
[406010698,1771538538324,-151.0,0.00053499,120]
[406010699,1771538538353,-151.0,0.00053499,120]
[406010700,1771538538381,-250.0,0.00053499,120]
[406010701,1771538538409,-250.0,0.00053499,120]
[406010702,1771538538437,-151.0,0.00053499,120]
[406010703,1771538538466,-250.0,0.00053499,120]
[406010704,1771538538496,-3546148.04375332,0.000535,120]
[406010705,1771538538526,-5000000.0,0.000535,120]
[406010706,1771538538558,-249817.01316285,0.000535,120]
[406010707,1771538543705,-257.91778498,0.00053083,60]
[406010708,1771538543736,-250.0,0.00053499,120]
[406010709,1771538543768,-250.0,0.00053499,120]
[406010710,1771538543798,-250.0,0.00053499,120]
[406010711,1771538543827,-250.0,0.00053499,120]
[406010712,1771538543857,-250.0,0.00053499,120]
[406010713,1771538543886,-250.0,0.00053499,120]
[406010714,1771538543915,-151.0,0.00053499,120]
[406010715,1771538543944,-250.0,0.00053499,120]
[406010716,1771538543979,-250.0,0.00053499,120]
[406010717,1771538544009,-250.0,0.00053499,120]
[406010718,1771538544039,-151.0,0.00053499,120]
[406010719,1771538544071,-151.0,0.00053499,120]
[406010720,1771538544101,-151.0,0.00053499,120]
[406010721,1771538544131,-151.0,0.00053499,120]
[406010722,1771538544162,-151.0,0.00053499,120]
[406010723,1771538544192,-151.0,0.00053499,120]
[406010724,1771538544222,-151.0,0.00053499,120]
[406010725,1771538544258,-4750182.98683715,0.000535,120]
[406010726,1771538544288,-4246101.09537787,0.000535,120]
[406010727,1771538548908,-1403.80951151,0.000446,52]
[406010728,1771538548971,-151.0,0.00053499,120]
[406010729,1771538549002,-151.0,0.00053499,120]
[406010730,1771538549031,-151.0,0.00053499,120]
[406010731,1771538549064,-753898.90462213,0.000535,120]
[406010732,1771538549096,-5000000.0,0.000535,120]
[406010733,1771538549128,-3244244.28586636,0.000535,120]
[406010734,1771538553330,-1755755.71413364,0.000535,120]
[406010735,1771538553364,-5000000.0,0.000535,120]
[406010736,1771538553397,-2244244.28586636,0.000535,120]
[406010737,1771538556946,-727.0,0.00044601,30]
[406010738,1771538557007,-2755755.71413364,0.000535,120]
[406010739,1771538557039,-5000000.0,0.000535,120]
[406010740,1771538557072,-1243517.28586636,0.000535,120]
[406010743,1771538724266,-250.0,8.46e-05,2]
[406010744,1771538724298,-220.0,8.46e-05,2]
[406010745,1771538724326,-464.262,9.021e-05,2]
[406010746,1771538724355,-300.0,9.203e-05,2]
[406010747,1771538724383,-300.0,9.204e-05,2]
[406010748,1771538724410,-150.05753594,9.204e-05,2]
[406010749,1771538724442,-500.0,9.204e-05,2]
[406010750,1771538724472,-500.0,9.204e-05,2]
[406010751,1771538724502,-500.0,9.204e-05,2]
[406010752,1771538724535,-500.0,9.204e-05,2]
[406010753,1771538724566,-500.0,9.204e-05,2]
[406010754,1771538724596,-500.0,9.204e-05,2]
[406010755,1771538724629,-131.37092812,9.204e-05,2]
[406010756,1771538724842,-368.62907188,9.204e-05,2]
[406010760,1771539031525,-300.0,9.103e-05,2]
[406010761,1771539031534,-225.0,9.103e-05,2]
[406010762,1771539031544,-500.0,9.104e-05,2]
[406010763,1771539031553,-356.34,9.104e-05,2]
[406010764,1771539031583,-143.66,9.104e-05,2]
[406010767,1771539031594,-500.0,9.104e-05,2]
[406010769,1771539031604,-500.0,9.104e-05,2]
[406010771,1771539031614,-600.70616784,9.104e-05,2]
[406010772,1771539031624,-32031.87411904,9.105e-05,2]
[406010792,1771539037575,-1274.14311857,9.105e-05,2]
[406010793,1771539037588,-1605.0,9.105e-05,2]
[406010797,1771539039646,-372.80333372,9.105e-05,2]
[406010798,1771539039657,-3561.99998,9.105e-05,2]
[406010799,1771539039718,-149706.63446222,9.105e-05,2]
[406010800,1771539039730,-315.041611,9.105e-05,2]
[406010801,1771539039741,-335.38,9.105e-05,2]
[406010802,1771539039752,-2073.02082785,9.105e-05,2]
[406010803,1771539039889,-613.45480522,9.105e-05,2]
[406010804,1771539039900,-271.22366728,9.105e-05,2]
[406010805,1771539039949,-519.99567805,9.105e-05,2]
[406010806,1771539039960,-127920.93939335,9.105e-05,2]
[406010807,1771539040118,-327.84001672,9.105e-05,2]
[406010829,1771539043518,-1292.02,9.105e-05,2]
[406010830,1771539043577,-5979.0,9.105e-05,2]
[406010831,1771539043641,-326.36,9.105e-05,2]
[406010847,1771539045369,-8524.9788303,9.105e-05,2]
[406010848,1771539045592,-374.85795528,9.105e-05,2]
[406010849,1771539045612,-1206.5764656,9.105e-05,2]
[406010850,1771539045652,-1129.76624814,9.105e-05,2]
[406010901,1771539329511,1974.44144118,8.9e-05,3]
[406010902,1771539329557,8055.91291179,8.9e-05,3]
[406010903,1771539329596,9272.20720592,8.9e-05,3]
[406010904,1771539329633,3798.8828824,8.9e-05,3]
[406010905,1771539331650,5015.17717649,8.9e-05,3]
[406010914,1771539798226,1410.32460709,8.8e-05,3]
[406010915,1771539798277,2670.64921421,8.8e-05,3]
[406010916,1771539798334,3678.90889985,8.8e-05,3]
[406010917,1771539798429,6955.75287829,8.8e-05,3]
[406010923,1771539898660,3100.0,8.7e-05,3]
[406010924,1771539900746,2973.92899307,8.8e-05,3]
[406010949,1771540231572,-2800.0,8.7e-05,3]
[406010950,1771540231582,-658.637,8.727e-05,2]
[406010951,1771540231591,-4569.33813753,8.727e-05,2]
[406010970,1771540237618,-1594.34128727,8.727e-05,2]
[406010971,1771540237630,-1274.5369169,8.727e-05,2]
[406010972,1771540237642,-311.58588379,8.727e-05,2]
[406010973,1771540237658,-1207.08854553,8.727e-05,2]
[406010974,1771540237668,-172.78,8.727e-05,2]
[406010975,1771540237678,-288.96735198,8.799e-05,2]
[406010976,1771540237687,-5600.0,8.8e-05,3]
[406010977,1771540237696,-1149.56027794,8.8e-05,2]
[406010978,1771540237708,-6076.26673288,8.8e-05,2]
[406010979,1771540237729,-6000.89731925,8.8e-05,2]
[406010980,1771540237742,-18800.79030136,8.8e-05,2]
[406010981,1771540237754,-485.4300017,8.8e-05,2]
[406010982,1771540237770,-2224.17408572,8.8e-05,2]
[406010983,1771540237821,-437.70943335,8.8e-05,2]
[406011009,1771540246072,-989.97572898,8.8e-05,2]
[406011054,1771540564670,-246.17,8.6e-05,2]
[406011055,1771540564700,-526.91,8.624e-05,2]
[406011056,1771540564732,-300.0,8.625e-05,2]
[406011057,1771540564762,-1200.0,8.625e-05,2]
[406011058,1771540564790,-450.0,8.625e-05,2]
[406011059,1771540564818,-300.0,8.625e-05,2]
[406011060,1771540564846,-150.0,8.625e-05,2]
[406011062,1771540621243,300.0,8.625e-05,2]
[406011088,1771541035867,-421.528,8.356e-05,2]
[406011089,1771541035895,-300.0,8.524e-05,2]
[406011090,1771541035922,-228.0,8.525e-05,2]
[406011091,1771541035949,-1200.0,8.525e-05,2]
[406011092,1771541035978,-300.0,8.525e-05,2]
[406011093,1771541036006,-221.0,8.525e-05,2]
[406011094,1771541036038,-500.0,8.525e-05,2]
[406011095,1771541036070,-500.0,8.525e-05,2]
[406011096,1771541036102,-500.0,8.525e-05,2]
[406011097,1771541036133,-500.0,8.525e-05,2]
[406011098,1771541036164,-158.954,8.525e-05,2]
[406011099,1771541038489,-341.046,8.525e-05,2]
[406011100,1771541038520,-500.0,8.525e-05,2]
[406011101,1771541038552,-500.0,8.525e-05,2]
[406011102,1771541038582,-500.0,8.525e-05,2]
[406011103,1771541038616,-500.0,8.525e-05,2]
[406011104,1771541038645,-500.0,8.525e-05,2]
[406011105,1771541038677,-500.0,8.525e-05,2]
[406011106,1771541038706,-500.0,8.525e-05,2]
[406011107,1771541038736,-500.0,8.525e-05,2]
[406011108,1771541038767,-202.51490313,8.525e-05,2]
[406011109,1771541038797,-412.88819374,8.525e-05,2]
[406011111,1771541059642,-254.45366316,8.525e-05,2]
[406011112,1771541059673,-250.0,8.525e-05,2]
[406011113,1771541059708,-87.11180626,8.525e-05,2]
[406011114,1771541059739,-500.0,8.525e-05,2]
[406011115,1771541059771,-500.0,8.525e-05,2]
[406011116,1771541059804,-500.0,8.525e-05,2]
[406011117,1771541059835,-500.0,8.525e-05,2]
[406011118,1771541059865,-500.0,8.525e-05,2]
[406011119,1771541059902,-500.0,8.525e-05,2]
[406011120,1771541059933,-500.0,8.525e-05,2]
[406011121,1771541059966,-500.0,8.525e-05,2]
[406011122,1771541059998,-316.87906116,8.525e-05,2]
[406011123,1771541060145,-183.12093884,8.525e-05,2]
[406011124,1771541060179,-500.0,8.525e-05,2]
[406011125,1771541060209,-500.0,8.525e-05,2]
[406011126,1771541060241,-500.0,8.525e-05,2]
[406011127,1771541060272,-500.0,8.525e-05,2]
[406011128,1771541060304,-500.0,8.525e-05,2]
[406011129,1771541060335,-500.0,8.525e-05,2]
[406011130,1771541060372,-500.0,8.525e-05,2]
[406011131,1771541060403,-500.0,8.525e-05,2]
[406011132,1771541060434,-500.0,8.525e-05,2]
[406011133,1771541060466,-133.76812232,8.525e-05,2]
[406011134,1771541062458,-366.23187768,8.525e-05,2]
[406011135,1771541062495,-500.0,8.525e-05,2]
[406011136,1771541062531,-500.0,8.525e-05,2]
[406011137,1771541062566,-500.0,8.525e-05,2]
[406011138,1771541062609,-500.0,8.525e-05,2]
[406011139,1771541062647,-500.0,8.525e-05,2]
[406011140,1771541062685,-500.0,8.525e-05,2]
[406011141,1771541062721,-500.0,8.525e-05,2]
[406011142,1771541062904,-500.0,8.525e-05,2]
[406011143,1771541062948,-500.0,8.525e-05,2]
[406011144,1771541065487,-500.0,8.525e-05,2]
[406011145,1771541065519,-500.0,8.525e-05,2]
[406011146,1771541065550,-500.0,8.525e-05,2]
[406011147,1771541065580,-500.0,8.525e-05,2]
[406011148,1771541065613,-500.0,8.525e-05,2]
[406011149,1771541065645,-500.0,8.525e-05,2]
[406011150,1771541065680,-500.0,8.525e-05,2]
[406011151,1771541065722,-500.0,8.525e-05,2]
[406011152,1771541065754,-500.0,8.525e-05,2]
[406011153,1771541065786,-500.0,8.525e-05,2]
[406011155,1771541068468,-500.0,8.525e-05,2]
[406011156,1771541068638,-500.0,8.525e-05,2]
[406011157,1771541068673,-500.0,8.525e-05,2]
[406011158,1771541068705,-500.0,8.525e-05,2]
[406011159,1771541068735,-500.0,8.525e-05,2]
[406011160,1771541068765,-200.0,8.525e-05,2]
[406011161,1771541068795,-500.0,8.525e-05,2]
[406011162,1771541068824,-500.0,8.525e-05,2]
[406011163,1771541068857,-500.0,8.525e-05,2]
[406011164,1771541068889,-500.0,8.525e-05,2]
[406011217,1771541431759,-453.0,8.489e-05,2]
[406011218,1771541431769,-221.0,8.489e-05,2]
[406011219,1771541431779,-240.503778,8.595e-05,2]
[406011220,1771541431789,-446.0,8.639e-05,2]
[406011221,1771541431798,-235.29,8.7e-05,2]
[406011222,1771541431807,-1200.0,8.799e-05,2]
[406011223,1771541431817,-241.0,8.799e-05,2]
[406011224,1771541431826,-73444.23082336,8.8e-05,2]
[406011225,1771541431838,-5749.99994,8.8e-05,2]
[406011226,1771541431849,-1524.9999999,8.8e-05,2]
[406011227,1771541431860,-447.62671468,8.8e-05,2]
[406011228,1771541431871,-86567.0,8.8e-05,2]
[406011229,1771541431882,-4583.54,8.8e-05,2]
[406011230,1771541431897,-1161.236,8.8e-05,2]
[406011255,1771541437879,-500.0,8.799e-05,2]
[406011256,1771541437888,-103.22941727,8.799e-05,2]
[406011257,1771541438051,-396.77058273,8.799e-05,2]
[406011258,1771541438060,-500.0,8.799e-05,2]
[406011259,1771541438069,-84.78941727,8.799e-05,2]
[406011260,1771541438084,-415.21058273,8.799e-05,2]
[406011261,1771541438093,-500.0,8.799e-05,2]
[406011262,1771541438103,-500.0,8.799e-05,2]
[406011263,1771541438112,-500.0,8.799e-05,2]
[406011264,1771541438122,-500.0,8.799e-05,2]
[406011265,1771541438131,-500.0,8.799e-05,2]
[406011266,1771541438141,-500.0,8.799e-05,2]
[406011267,1771541438151,-500.0,8.799e-05,2]
[406011268,1771541438161,-500.0,8.799e-05,2]
[406011269,1771541438170,-500.0,8.799e-05,2]
[406011270,1771541438179,-440.25149031,8.799e-05,2]
[406011271,1771541438194,-500.0,8.799e-05,2]
[406011272,1771541438203,-500.0,8.799e-05,2]
[406011273,1771541438213,-500.0,8.799e-05,2]
[406011275,1771541438223,-500.0,8.799e-05,2]
[406011277,1771541438233,-500.0,8.799e-05,2]
[406011278,1771541438243,-500.0,8.799e-05,2]
[406011279,1771541438252,-500.0,8.799e-05,2]
[406011280,1771541438261,-500.0,8.799e-05,2]
[406011281,1771541438271,-500.0,8.799e-05,2]
[406011282,1771541438280,-11691.33944574,8.8e-05,2]
[406011283,1771541438292,-9669.11409405,8.8e-05,2]
[406011284,1771541438305,-3015.00009,8.8e-05,2]
[406011285,1771541438316,-13452.948639,8.8e-05,2]
[406011289,1771541439965,-3398.94524865,8.8e-05,2]
[406011290,1771541439977,-4226.3795467,8.8e-05,2]